Workbook

Sheet Titulní list (hidden)
B16: ROZBOR HOSPODAŘENÍ FN OLOMOUC
F18: =dat_obdobi -> 1-3/2010
A44: Období od: | B44: 2010-01-01
A45: do: | B45: 2010-03-31
A46: rok: | B46: =YEAR(dat_do) -> 2010
A47: Typ období: | B47: =CONCATENATE(MONTH(dat_od),"-",MONTH(dat_do),"/",YEAR(dat_do)) -> 1-3/2010
A48: Měsíc: | B48: =dat_do -> 2010-03-31
B49: =CONCATENATE("Skut. ", dat_obdobi) -> Skut. 1-3/2010
B50: =CONCATENATE("PLÁN ", dat_rok) -> PLÁN 2010
A51: Předch.obd.od: | B51: =CONCATENATE("1.1.",YEAR(dat_od)-1) -> 1.1.2009
A52: Předch.obd.do: | B52: =CONCATENATE((DAY(dat_do)),".",MONTH(dat_do),".",YEAR(dat_do)-1) -> 31.3.2009
A53: Předch.rok: | B53: =YEAR(dat_dorokpredch) -> 2009
A54: Předch.r. měs. | B54: =dat_do-366 -> 2009-03-30
A55: Predch.typ obd. | B55: =CONCATENATE(MONTH(dat_odrokpredch),"-",MONTH(dat_dorokpredch),"/",YEAR(dat_dorokpredch)) -> 1-3/2009

Sheet Rozbor hospodaření FN Olomouc-1
A1: ROZBOR HOSPODAŘENÍ FN OLOMOUC
A3: =dat_obdobi -> 1-3/2010
D5: Rozpočet | E5: Skutečnost | G5: Rozdíl | H5: Překročení
D6: =YEAR(dat_do) -> 2010 | E6: =dat_obdobi -> 1-3/2010
A7: Náklady bez VPN | D7: 4195228 | E7: 1139155.671 | F7: tis.Kč | G7: =N_bez_VPN-((N_bez_VPN_Rozp/12)*MONTH(dat_do)) -> 90348.67142 | H7: =IF(N_bez_VPN_Rozp <> 0,G7/((N_bez_VPN_Rozp/12)*MONTH(dat_do)),"-") -> 0.08614422999
A8: Náklady celkem vč. VPN | D8: 4468965 | E8: 1211225.383 | F8: tis.Kč | G8: =N_vc_VPN-((N_vc_VPN_Rozp/12)*MONTH(dat_do)) -> 93984.13344
A10: Výnosy bez VPV | D10: 4216203 | E10: 1141653.352 | F10: tis.Kč | G10: =V_bez_VPV-((V_bez_VPV_Rozp/12)*MONTH(dat_do)) -> 87602.6023 | H10: =IF(V_bez_VPV_Rozp <> 0,G10/((V_bez_VPV_Rozp/12)*MONTH(dat_do)),"-") -> 0.08311042168
A11: Výnosy celkem vč. VPV | D11: 4489940 | E11: 1213723.064 | F11: tis.Kč | G11: =V_vc_VPV-((V_vc_VPV_Rozp/12)*MONTH(dat_do)) -> 91238.06432
A13: Hospodářský výsledek = | C13: zisk | E13: =ABS(E10-E7) -> 2497.68088 | F13: tis.Kč
A15: Rozbor nákladů:
A17: Překročení nákladů o:
A19: SZM | E19: 62816 | F19: tis. Kč
A20: Léky | E20: 22403 | F20: tis. Kč
A21: Spotřeba energie | E21: 9739 | F21: tis. Kč
A22: Všeobecný materiál | E22: 354 | F22: tis. Kč
A23: DDHM | E23: 790 | F23: tis. Kč
A26: Zásoby: | B26: Limit | C26: =CONCATENATE("Počáteční stav ",DAY(dat_od),".",MONTH(dat_od),".",YEAR(dat_do)) -> Počáteční stav 1.1.2010 | D26: =CONCATENATE("Stav k ",DAY(dat_do),".",MONTH(dat_do),".",YEAR(dat_do)) -> Stav k 31.3.2010 | E26: Snížení / Zvýšení zásob o
A27: Léky | B27: 23300 | C27: 34109 | D27: 32237 | E27: =IF(C27>D27,"snížení","zvýšení") -> snížení | F27: =D27-C27 -> -1872
A28: Krev | B28: 13000 | C28: 16522 | D28: 15624 | E28: =IF(C28>D28,"snížení","zvýšení") -> snížení | F28: =D28-C28 -> -898
A29: SZM | B29: 14700 | C29: 4824 | D29: 6292 | E29: zvýšení | F29: 1468
A30: Dentální slitiny | B30: nestanoven | C30: 242 | D30: 279 | E30: =IF(C30>D30,"snížení","zvýšení") -> zvýšení | F30: =D30-C30 -> 37
A31: Potraviny | B31: 1600 | C31: 1368 | D31: 1608 | E31: zvýšení | F31: 240
A32: Prádlo | B32: 2600 | C32: 1907 | D32: 1888 | E32: snížení | F32: -19
A33: Všeobecný materiál | B33: 1000 | C33: 1835 | D33: 1538 | E33: snížení | F33: -297
A34: Údržbový materiál | B34: nestanoven | C34: 936 | D34: 884 | E34: snížení | F34: -52
A35: DDHM | B35: nestanoven | C35: 582 | D35: 224 | E35: snížení | F35: -358
A36: Materiál na cestě | B36: nestanoven | C36: 787 | D36: 971 | E36: zvýšení | F36: 184
A37: Zboží na skladě | B37: nestanoven | C37: 21 | D37: 40 | E37: zvýšení | F37: 19
A38: Zboží na cestě | B38: nestanoven | C38: 0 | D38: 0 | E38: zvýšení | F38: 0
A39: CELKEM | B39: nestanoven | C39: 63132 | D39: 61586 | E39: snížení | F39: -1546
A42: Rozbor výnosů
D43: Rozpočet | E43: Skutečnost | G43: Rozdíl | H43: Překročení
D44: =YEAR(dat_do) -> 2010 | E44: =dat_obdobi -> 1-3/2010
A45: Výnosy celkem | D45: 4216203 | E45: 1141653.352 | F45: tis.Kč | G45: =E45-((D45/12)*MONTH(dat_do)) -> 87602.6023 | H45: =G45/((D45/12)*MONTH(dat_do)) -> 0.08311042168
A46: z toho:
A47: Výkony pro zdravotní pojišťovny | D47: 3391679 | E47: 905793.3703 | F47: tis.Kč | G47: =E47-((D47/12)*MONTH(dat_do)) -> 57873.62033 | H47: =IF(D47 <> 0,G47/((D47/12)*MONTH(dat_do)),"-") -> 0.06825365293
A48: 671 vybrané činnosti MZ | D48: 5200 | E48: 0 | F48: tis.Kč | G48: -1300 | H48: -1
A49: 671 VaV | D49: 15000 | E49: 6581 | F49: tis.Kč | G49: 2831 | H49: 0.7549333333
A50: 671 dotace na DDM ISPROFIN | D50: 0 | E50: 119 | F50: tis.Kč | G50: 119 | H50: -
A51: 691 dotace na provoz z ÚSC | D51: 0 | E51: 0 | F51: tis.Kč | G51: 0 | H51: -
A52: 899 vnitropodnikové výnosy | D52: 273737 | E52: 72070 | F52: tis.Kč | G52: 3635.75 | H52: 0.05312763711
A53: 604 tržby LS | D53: 381635 | E53: 84601 | F53: tis.Kč | G53: -10807.75 | H53: -0.1132783943
A54: ostatní výnosy | D54: =D45 -SUM(D47:D53) -> 148952 | E54: =E45 -SUM(E47:E53) -> 72488.98197 | F54: tis.Kč | G54: 35250.98197 | H54: 0.9466400443
A56: Komentář: vlivy do nákladů - vyšší spotřeba léků v centrech, vyšší spotřeba krev.deriv., překročení nákladů na defibrilátory, pořízení
A57: nábytku - vybavení ambulance traumatologie, OUP, marketingu, poradenské služby-inv.strategie z r.09,
A58: IOP-porad.služby, školení lékařů a ost.zdr.prac, studium MBA, dorovnání DPH-strava
A59: vlivy do výnosů - dorovnání péče min.let VZP 4,5 mil., ZPMV a RBP 3 mil.
B60: odhad ZP z minulých let 71,2 mil. Kč
B61: na regulačních poplatcích bylo vybráno 8,5 mil. Kč

Sheet Ziskové kliniky FN Olomouc-3 (hidden)
A1: Ziskové kliniky FN Olomouc proti rozpočtu
A2: =dat_obdobi -> 1-3/2010
C30: Klinika | D30: Klinika č. | E30: Zisk
C31: Klinika TVL a kard.reh | D31: 27 | E31: 318
C32: Transfůzní oddělení | D32: 35 | E32: 1515

Sheet Ziskové kliniky FN Olomouc-0 (hidden)
A1: Ziskové kliniky FN Olomouc
A2: =dat_obdobi -> 1-3/2010
C30: Klinika | D30: Klinika č. | E30: Zisk
C31: Novorozenecké oddělení | D31: 09 | E31: 3070
C32: Onkologická klinika | D32: 21 | E32: 466
C33: Klinika nukleární medicíny | D33: 22 | E33: 13725
C34: Klinika rehabilit. a tělových. | D34: 26 | E34: 2870
C35: Ústav lékařské genetiky a fet. | D35: 28 | E35: 5035
C36: Odděl.klin.biochemie a imunoge | D36: 33 | E36: 5988
C37: Radiologická klinika | D37: 34 | E37: 2656
C38: Transfůzní oddělení | D38: 35 | E38: 10602
C39: Ústav patologie | D39: 37 | E39: 7863
C40: Ústav mikrobiologie | D40: 40 | E40: 2495
C41: Ústav imunologie | D41: 41 | E41: 3178
C42: Kardiochirurgická klinika | D42: 50 | E42: 858
C43: Oddělení int.péče chir.oborů | D43: 59 | E43: 153

Sheet Ztrátové kliniky FN Olomouc-4 (hidden)
A1: Ztrátové kliniky FN Olomouc proti rozpočtu
A2: =dat_obdobi -> 1-3/2010
C30: Klinika | D30: Klinika č. | E30: Ztráta
C31: I. Interní klinika | D31: 01 | E31: 13875
C32: II. Interní klinika | D32: 02 | E32: 1404
C33: III. Interní klinika | D33: 03 | E33: 3589
C34: I. Chirurgická klinika | D34: 04 | E34: 3578
C35: II. Chirurgická klinika | D35: 05 | E35: 1603
C36: Neurochirurgická klinika | D36: 06 | E36: 4296
C37: Klinika anesteziologie a resus | D37: 07 | E37: 5542
C38: Porodnicko-gynekologická klini | D38: 08 | E38: 4250
C39: Novorozenecké oddělení | D39: 09 | E39: 1153
C40: Dětská klinika | D40: 10 | E40: 4151
C41: Ortopedická klinika | D41: 11 | E41: 2233
C42: Urologická klinika | D42: 12 | E42: 1826
C43: Otolaryngologická klinika | D43: 13 | E43: 492
C44: Oční klinika | D44: 14 | E44: 7713
C45: Oddělení alergologie | D45: 15 | E45: 411
C46: Klinika plicních nemocí a tube | D46: 16 | E46: 2746
C47: Neurologická klinika | D47: 17 | E47: 6202
C48: Klinika psychiatrie | D48: 18 | E48: 3470
C49: Klinika pracovního lékařství | D49: 19 | E49: 604
C50: Klinika chorob kožních a pohl. | D50: 20 | E50: 1213
C51: Onkologická klinika | D51: 21 | E51: 1807
C52: Klinika nukleární medicíny | D52: 22 | E52: 2184
C53: Klinika zubního lékařství | D53: 24 | E53: 159
C54: Klinika ústní,čelistní a obl. | D54: 25 | E54: 279
C55: Klinika rehabilit. a tělových. | D55: 26 | E55: 4349
C56: Ústav lékařské genetiky a fet. | D56: 28 | E56: 1079
C57: Oddělení plastické a estetické | D57: 29 | E57: 1466
C58: Oddělení geriatrie | D58: 30 | E58: 1127
C59: Traumatologické oddělení | D59: 31 | E59: 1851
C60: Hemato-onkologická klinika | D60: 32 | E60: 11959
C61: Odděl.klin.biochemie a imunoge | D61: 33 | E61: 5646
C62: Radiologická klinika | D62: 34 | E62: 4226
C63: Oddělení klinické logopedie | D63: 36 | E63: 128
C64: Ústav patologie | D64: 37 | E64: 21
C65: Ústav soudního lékařství a med | D65: 38 | E65: 847
C66: Oddělení klinické psychologie | D66: 39 | E66: 412
C67: Ústav mikrobiologie | D67: 40 | E67: 930
C68: Ústav imunologie | D68: 41 | E68: 2217
C69: Ústav farmakologie | D69: 43 | E69: 8
C70: Sociální oddělení | D70: 45 | E70: 140
C71: Transplantační centrum | D71: 46 | E71: 68
C72: Centrální operační sály | D72: 47 | E72: 1191
C73: Lékárna | D73: 48 | E73: 4150
C74: Kardiochirurgická klinika | D74: 50 | E74: 6137
C75: Oddělení lékařské fyziky a rad | D75: 53 | E75: 95
C76: Oddělení centrální sterilizace | D76: 56 | E76: 174
C77: Oddělení int.péče chir.oborů | D77: 59 | E77: 2431
C78: Oddělení urgentního příjmu | D78: 60 | E78: 1714

Sheet Ztrátové kliniky FN Olomouc-0 (hidden)
A1: Ztrátové kliniky FN Olomouc
A2: =dat_obdobi -> 1-3/2010
C30: Klinika | D30: Klinika č. | E30: Ztráta
C31: I. Interní klinika | D31: 01 | E31: 12382
C32: II. Interní klinika | D32: 02 | E32: 3469
C33: III. Interní klinika | D33: 03 | E33: 443
C34: I. Chirurgická klinika | D34: 04 | E34: 7577
C35: II. Chirurgická klinika | D35: 05 | E35: 1660
C36: Neurochirurgická klinika | D36: 06 | E36: 2392
C37: Klinika anesteziologie a resus | D37: 07 | E37: 3750
C38: Porodnicko-gynekologická klini | D38: 08 | E38: 4741
C39: Dětská klinika | D39: 10 | E39: 5599
C40: Ortopedická klinika | D40: 11 | E40: 4429
C41: Urologická klinika | D41: 12 | E41: 4424
C42: Otolaryngologická klinika | D42: 13 | E42: 3759
C43: Oční klinika | D43: 14 | E43: 5008
C44: Oddělení alergologie | D44: 15 | E44: 615
C45: Klinika plicních nemocí a tube | D45: 16 | E45: 5479
C46: Neurologická klinika | D46: 17 | E46: 10177
C47: Klinika psychiatrie | D47: 18 | E47: 3026
C48: Klinika pracovního lékařství | D48: 19 | E48: 989
C49: Klinika chorob kožních a pohl. | D49: 20 | E49: 1684
C50: Klinika zubního lékařství | D50: 24 | E50: 1523
C51: Klinika ústní,čelistní a obl. | D51: 25 | E51: 873
C52: Klinika TVL a kard.reh | D52: 27 | E52: 106
C53: Oddělení plastické a estetické | D53: 29 | E53: 2400
C54: Oddělení geriatrie | D54: 30 | E54: 3698
C55: Traumatologické oddělení | D55: 31 | E55: 4531
C56: Hemato-onkologická klinika | D56: 32 | E56: 2500
C57: Oddělení klinické logopedie | D57: 36 | E57: 267
C58: Ústav soudního lékařství a med | D58: 38 | E58: 1913
C59: Oddělení klinické psychologie | D59: 39 | E59: 203
C60: Ústav farmakologie | D60: 43 | E60: 290
C61: Sociální oddělení | D61: 45 | E61: 697
C62: Transplantační centrum | D62: 46 | E62: 287
C63: Centrální operační sály | D63: 47 | E63: 14458
C64: Lékárna | D64: 48 | E64: 60
C65: Oddělení lékařské fyziky a rad | D65: 53 | E65: 1278
C66: Oddělení centrální sterilizace | D66: 56 | E66: 5306
C67: Oddělení urgentního příjmu | D67: 60 | E67: 9628

Sheet Vývoj stavu zásob-5
A1: Vývoj stavu zásob
A2: =CONCATENATE(" v průběhu roku ",dat_rok) -> v průběhu roku 2010
B31: Poč.stav | C31: leden | D31: únor | E31: březen | F31: duben | G31: květen | H31: červen | I31: červenec | J31: srpen | K31: září | L31: říjen | M31: listopad | N31: prosinec
A32: Zásoby celkem | B32: 63132 | C32: 65896 | D32: 64030 | E32: 61586
A33: Léky | B33: 34109 | C33: 38614 | D33: 35127 | E33: 32237
A34: z toho RTG diagn. | B34: 313 | C34: 258 | D34: 117 | E34: 54
A35: Krev | B35: 16522 | C35: 14695 | D35: 15676 | E35: 15624
A36: SZM | B36: 4824 | C36: 4812 | D36: 5758 | E36: 6292
A37: z toho lab. diagn.*
A38: Mater.na cestě | B38: 787 | C38: 1296 | D38: 1024 | E38: 971
A40: * včetně meziskladů

Sheet Přehled o čerpání nákladů-6
B1: =CONCATENATE("Přehled o čerpání nákladů roku ",dat_rok) -> Přehled o čerpání nákladů roku 2010
E3: (v tis.Kč)
A5: Položka | B5: =PLAN_rok -> PLÁN 2010 | C5: Poměr pl. | D5: =Skut_typobd -> Skut. 1-3/2010 | E5: SK/PL v %
A6: 501 10 Biologické implantáty | B6: 4200 | C6: =B6/12*(MONTH(dat_do)-MONTH(dat_od)+1) -> 1050 | D6: 2222.522 | E6: =IF(B6<>0,D6/B6*100,0) -> 52.91719048
A7: 501 12 PHM | B7: 2185 | C7: =B7/12*(MONTH(dat_do)-MONTH(dat_od)+1) -> 546.25 | D7: 594.37017 | E7: 27.20229611
A8: 501 13 Léky | B8: 832484 | C8: 208121 | D8: 230524.3405 | E8: 27.69114367
A9: 501 14 Krev | B9: 49954 | C9: 12488.5 | D9: 12655.24734 | E9: 25.33380178
A10: 501 15 SZM | B10: 658938 | C10: 164734.5 | D10: 227550.9024 | E10: 34.53297615
A11: 501 16 Potraviny | B11: 38751 | C11: 9687.75 | D11: 10397.79772 | E11: 26.83233393
A12: 501 17 Všeobecný materiál | B12: 34889 | C12: 8722.25 | D12: 9076.3731 | E12: 26.01499928
A13: 501 18 Náhradní díly | B13: 13412 | C13: 3353 | D13: 2833.08043 | E13: 21.12347472
A14: 501 19 DHM a textil | B14: 25000 | C14: 6250 | D14: 7039.65262 | E14: 28.15861048
A15: 501 60 Knihy a časopisy | B15: 400 | C15: 100 | D15: 136.273 | E15: 34.06825
A16: 501 80 Spotř.nák.-z darů, kl.stud. | B16: 4000 | C16: 1000 | D16: 699.3341 | E16: 17.4833525
A17: 502 Spotřeba energie | B17: 109812 | C17: 27453 | D17: 37191.9903 | E17: 33.86878511
A18: 504 01 Prodané zboží | B18: 3532 | C18: 883 | D18: 885.27549 | E18: 25.06442497
A19: 504 95 Prodané LS | B19: 338918 | C19: 84729.5 | D19: 75994.51989 | E19: 22.42268628
A20: 501 99 Opravy nákl. min. let | B20: 0 | C20: 0 | D20: 0 | E20: 0
A21: Spotřebované nákupy | B21: =SUM(B6:B20) -> 2116475 | C21: 529118.75 | D21: =SUM(D6:D20) -> 617801.679 | E21: 29.1901241
A22: 511 Opravy a udržování | B22: 47306 | C22: 11826.5 | D22: 10460.87699 | E22: 22.11321395
A23: 512 Cestovné | B23: 2850 | C23: 712.5 | D23: 761.92898 | E23: 26.73435018
A24: 513 Náklady na reprezentaci | B24: 300 | C24: 75 | D24: 24.32 | E24: 8.106666667
A25: 518 01 Přepravné | B25: 450 | C25: 112.5 | D25: 95.89744 | E25: 21.31054222
A26: 518 02 Spoje | B26: 5800 | C26: 1450 | D26: 1282.01454 | E26: 22.10369897
A27: 518 04 Nájemné | B27: 11675 | C27: 2918.75 | D27: 2632.74671 | E27: 22.55029302
A28: 518 Ostatní služby | B28: 124487 | C28: 31121.75 | D28: 28640.34592 | E28: 23.00669622
A29: 521 Osobní náklady | B29: 1145130 | C29: 286282.5 | D29: 289025.017 | E29: 25.23949394
A30: 524 Zákonné sociální pojištění | B30: 389344 | C30: 97336 | D30: 98419.8395 | E30: 25.27837581
A31: 525 Ostatní sociální pojištění | B31: 4777 | C31: 1194.25 | D31: 0 | E31: 0
A32: 527 Zákon. soc. poj. (FKSP) | B32: 22747 | C32: 5686.75 | D32: 5729.89806 | E32: 25.18968682
A33: 528 Náhrady-prac.nesch. | B33: 1100 | C33: 275 | D33: 358.0775 | E33: 32.5525
A34: 53 Daně a poplatky | B34: 725 | C34: 181.25 | D34: 90.31819 | E34: 12.45768138
A35: 54x,55x,56x Ostatní fin.náklady | B35: 9407 | C35: 2351.75 | D35: 4631.80353 | E35: 49.23783916
A36: 551 Odpisy | B36: 272360 | C36: 68090 | D36: 68028.468 | E36: 24.97740784
A37: 552,553 ZC prod.DNM, DHM | B37: 0 | C37: 0 | D37: 0 | E37: 0
A38: 544,554 Prodaný mat. a pozemky | B38: 36100 | C38: 9025 | D38: 11172.44004 | E38: 30.94858737
A39: 555 Tvorba zák. rez. a opr.pol. | B39: 0 | C39: 0 | D39: 0 | E39: 0
A40: 59 Daň z příjmů | B40: 4195 | C40: 1048.75 | D40: 0 | E40: 0
A41: Přímé náklady celkem | B41: =SUM(B21:B40) -> 4195228 | C41: =SUM(C21:C40) -> 1048807 | D41: =SUM(D21:D40) -> 1139155.671 | E41: 27.15360575

Sheet Náklady FN Olomouc v tis.Kč-7 (hidden)
A1: Náklady FN Olomouc v tis. Kč
A2: =dat_obdobi -> 1-3/2010
C24: Náklady FN Olomouc v tis. Kč
C25: Léky | D25: 230524
C26: Krev | D26: 12655
C27: SZM | D27: 227551
C28: Potraviny | D28: 10398
C29: Energie | D29: 37192
C30: Osobní náklady | D30: 393533
C31: Odpisy | D31: 68028
C32: Prodané zboží LS | D32: 75995
C33: Ostatní | D33: =D34-SUM(D25:D32) -> 83280
C34: Celkem | D34: 1139156
A37: Podíl ukazatelů z celkových nákladů
A38: =dat_obdobi -> 1-3/2010

Sheet Čerpání vybraných nákladů-8 (hidden)
A1: Čerpání vybraných nákladů
A2: =CONCATENATE(" v jednotlivých měsících roku ", dat_rok) -> v jednotlivých měsících roku 2010
A27: Název | B27: rozpočet | C27: leden | D27: únor | E27: březen | F27: duben | G27: květen | H27: červen | I27: červenec | J27: srpen | K27: září | L27: říjen | M27: listopad | N27: prosinec
A28: Léky | B28: 69374 | C28: 78495 | D28: 71187 | E28: 80842
A29: Krev | B29: 4163 | C29: 4347 | D29: 3630 | E29: 4678
A30: SZM | B30: 54912 | C30: 63572 | D30: 77825 | E30: 86153

Sheet Přehled o výnosech roku-9
B1: =CONCATENATE("Přehled o výnosech roku ",dat_rok) -> Přehled o výnosech roku 2010
E3: (v tis. Kč)
A5: Položka | B5: =PLAN_rok -> PLÁN 2010 | C5: Poměr pl. | D5: =Skut_typobd -> Skut. 1-3/2010 | E5: SK/PL v %
A6: 601 Tržby za vlastní výrobky | B6: 0 | C6: =B6/12*(MONTH(dat_do)-MONTH(dat_od)+1) -> 0 | D6: 0 | E6: =IF(B6<>0,D6/B6*100,0) -> 0
A7: 602 10,11,13,14 Zdrav. sl. za úhr. | B7: 56685 | C7: =B7/12*(MONTH(dat_do)-MONTH(dat_od)+1) -> 14171.25 | D7: 15281.54245 | E7: 26.95870592
A8: 602 27,28, 29 Zdrav. výk. - běžný rok | B8: 72479 | C8: 18119.75 | D8: 18035.11389 | E8: 24.88322671
A9: 602 40,42,43,46 Zdrav.vyk.-min.let | B9: 0 | C9: 0 | D9: 97023.75064 | E9: 0
A10: 602 45 Fakturace ZP - běžný rok | B10: 3319200 | C10: 829800 | D10: 790734.5058 | E10: 23.82304488
A11: 602 Ostatní služby | B11: 960 | C11: 240 | D11: 279.64169 | E11: 29.12934271
A12: 604 Prodej zboží | B12: 4330 | C12: 1082.5 | D12: 1120.92991 | E12: 25.88752679
A13: 604 Prodané léky a léčiva | B13: 381635 | C13: 95408.75 | D13: 84600.93429 | E13: 22.16802293
A14: 62 Aktivace - krev a KV | B14: 82795 | C14: 20698.75 | D14: 21441.89316 | E14: 25.89757009
A15: 648 01,02,03 Použití RF | B15: 2000 | C15: 500 | D15: 232.59318 | E15: 11.629659
A16: 648 04 Použití FRM | B16: 47266 | C16: 11816.5 | D16: 10389.20645 | E16: 21.98029546
A17: 603 Tržby z nájem. | B17: 24800 | C17: 6200 | D17: 6224.80831 | E17: 25.10003351
A18: 64x,66x, Ostatní výnosy | B18: 160733 | C18: 40183.25 | D18: 75336.91507 | E18: 46.87084486
A19: 644,645,646 Tržby z prod. mat. a majetku | B19: 43120 | C19: 10780 | D19: 14251.49861 | E19: 33.05078527
A20: 67x Výnosy z nároků na pr.SR,ÚSC,ost. | B20: 20200 | C20: 5050 | D20: 6700 | E20: 33.16831683
A21: Přímé výnosy celkem | B21: 4216203 | C21: =B21/12*(MONTH(dat_do)-MONTH(dat_od)+1) -> 1054050.75 | D21: 1141653.352 | E21: =IF(B21<>0,D21/B21*100,0) -> 27.07776054

Sheet Výnosy FN Olomouc v tis.Kč-10 (hidden)
A1: Výnosy FN Olomouc v tis. Kč
A2: =dat_obdobi -> 1-3/2010
C23: Výnosy FN Olomouc v tis. Kč
C24: Provozní dotace | D24: 6700
C25: Výkony pro zdr.poj. | D25: 905793.3703
C26: Aktivace | D26: 21441.89316
C27: Tržby za léčiva | D27: 84600.93429
C28: Ostatní výnosy | D28: =D29-SUM(D23:D27) -> 123117.1545
C29: Celkem | D29: 1141653.352
A34: Podíl ukazatelů z celkových výnosů
A35: =dat_obdobi -> 1-3/2010

Sheet Srovnání nákladů, výnosů a m-11 (hidden)
A1: Srovnání nákladů, výnosů a os. nákladů
A2: =CONCATENATE(" v jednotlivých měsících roku ",dat_rok) -> v jednotlivých měsících roku 2010
B31: leden | C31: únor | D31: březen | E31: duben | F31: květen | G31: červen | H31: červenec | I31: srpen | J31: září | K31: říjen | L31: listopad | M31: prosinec
A32: př. náklady | B32: 368455 | C32: 371761 | D32: 398939 | E32: 0 | F32: 0 | G32: 0 | H32: 0 | I32: 0 | J32: 0 | K32: 0 | L32: 0 | M32: 0
A33: př. výnosy | B33: 347098 | C33: 357811 | D33: 436745 | E33: 0 | F33: 0 | G33: 0 | H33: 0 | I33: 0 | J33: 0 | K33: 0 | L33: 0 | M33: 0
A34: os. náklady | B34: 132481 | C34: 130641 | D34: 130411 | E34: 0 | F34: 0 | G34: 0 | H34: 0 | I34: 0 | J34: 0 | K34: 0 | L34: 0 | M34: 0

Sheet Srovnání nákladů a výnosů mě-12
A1: =CONCATENATE(" Srovnání nákladů a výnosů v roce ",dat_rok) -> Srovnání nákladů a výnosů v roce 2010
A2: =CONCATENATE(" se stejným obdobím roku ",dat_rok-1) -> se stejným obdobím roku 2009
A6: Položka | B6: =mesic_rokpredchoz -> 2009-03-30 | C6: % | D6: =mesic_rok -> 2010-03-31 | E6: % | F6: Rozdíl
A7: Léky | B7: 68696 | C7: =B7/B$19*100 -> 19.22361035 | D7: 80842 | E7: =D7/D$19*100 -> 19.1164766 | F7: =D7-B7 -> 12146
A8: Krev | B8: 3156 | C8: 0.8831622547 | D8: 4678 | E8: 1.106193285 | F8: =D8-B8 -> 1522
A9: SZM | B9: 56102 | C9: 15.69935641 | D9: 86153 | E9: 20.37235358 | F9: 30051
A10: Potraviny | B10: 3562 | C10: 0.99677565 | D10: 3887 | E10: 0.9191477763 | F10: 325
A11: Všeobecný materiál | B11: 2912 | C11: 0.8148822832 | D11: 2847 | E11: 0.6732219499 | F11: -65
A12: Spotřeba energie | B12: 11469 | C12: 3.209438498 | D12: 11281 | E12: 2.667585816 | F12: -188
A13: Opravy a udržování | B13: 2635 | C13: 0.7373677254 | D13: 4162 | E13: 0.9841762401 | F13: 1527
A14: Osobní náklady | B14: 114264 | C14: 31.97517487 | D14: 130410.6538 | E14: 30.83783444 | F14: 16146.65382
A15: Odpisy | B15: 21523 | C15: 6.022909128 | D15: 22677 | E15: 5.362365352 | F15: 1154
A16: Vnitropodnik. náklady | B16: 23530.72942 | C16: 6.584743996 | D16: 23952.33215 | E16: 5.663939499 | F16: 421.60273
A17: Ostatní náklady | B17: =B19- SUM(B7:B16) - B18 -> 49502.49924 | C17: 13.85257885 | D17: =D19- SUM(D7:D16) - D18 -> 52001.75136 | E17: 12.29670546 | F17: 2499.25212
A18: Opravy nákladů min. let | B18: 0 | C18: 0 | D18: 0 | E18: 0 | F18: 0
A19: Náklady celkem | B19: 357352.2287 | C19: 100 | D19: 422891.7373 | E19: 100 | F19: 65539.50867
A20: Tržby za vl. výrobky | B20: 0 | C20: =B20/B$35*100 -> 0 | D20: 0 | E20: =D20/D$35*100 -> 0 | F20: 0
A21: Zdr. služby za úhradu | B21: 5287.28975 | C21: 1.513183392 | D21: 6122.59712 | E21: 1.328985705 | F21: 835.30737
A22: Tržby z nájemného | B22: 2690.51039 | C22: 0.7700042614 | D22: 2000.95389 | E22: 0.4343318796 | F22: -689.5565
A23: Zdrav. výk. - běžný rok | B23: 8110.30517 | C23: 2.321109618 | D23: 7320.36731 | E23: 1.588976592 | F23: -789.93786
A24: Zdrav. výk. - min. let | B24: 19.95978 | C24: 0.005712342057 | D24: 72110.31516 | E24: 15.65243901 | F24: 72090.35538
A25: Fakturace ZP - běžný rok | B25: 253692.144 | C25: 72.60482349 | D25: 264062.0217 | E25: 57.31793961 | F25: 10369.87772
A26: Ostatní služby | B26: 47.3696 | C26: 0.0135568307 | D26: 110.56259 | E26: 0.02399898257 | F26: 63.19299
A27: Tržby za prodané léky | B27: 29863 | C27: 8.546570697 | D27: 34585 | E27: 7.507103553 | F27: 4722
A28: Ost. tržby za prodané zboží | B28: 371 | C28: 0.1061774681 | D28: 419 | E28: 0.09094915104 | F28: 48
A29: Aktivace - krev a KV | B29: 6275 | C29: 1.795858793 | D29: 8154 | E29: 1.769926915 | F29: 1879
A30: Tržby z prodeje materiálu a majetku | B30: 4594 | C30: 1.314768971 | D30: 6465.01245 | E30: 1.403311202 | F30: 1871.01245
A31: Provozní dotace od zřizovatele | B31: 306 | C31: 0.0875749467 | D31: 6700 | E31: 1.454318167 | F31: 6394
A32: Vnitropodnik. výnosy | B32: 23531 | C32: 6.734398924 | D32: 23952.33215 | E32: 5.199151013 | F32: 421.33215
A33: Použití rezervního fondu | B33: 59 | C33: 0.01688536554 | D33: 69 | E33: 0.0149773065 | F33: 10
A34: Ostatní výnosy | B34: =B35 - SUM(B20:B33) -> 14568.42131 | C34: 4.169374901 | D34: =D35 - SUM(D20:D33) -> 28625.82621 | E34: 6.213590911 | F34: 14057.4049
A35: Výnosy celkem | B35: 349415 | C35: 100 | D35: 460696.9886 | E35: 100 | F35: 111281.9886
A36: Hospodářský výsledek | B36: =B35-B19 -> -7937.22866 | D36: =D35-D19 -> 37805.25127 | F36: 45742.47993
A37: Průměrný počet lůžek | B37: 1396 | D37: 1393 | F37: -3
A38: Počet oš. dnů | B38: 33134 | D38: 32491 | F38: -643
A39: Prům. nákl. na lůžkoden (hospit.) | B39: 2553.457436 | D39: 3198.191279 | F39: 644.7338433
A40: Prům. náklady na oš. den FNO | B40: 9262.605075 | D40: 11310.69497 | F40: 2048.089894
A43: Rozdíl:
A44: úspora nákladů (-)
A45: překročení nákladů (+)
A46: snížení výnosů (-)
A47: překročení výnosů (+)

Sheet Srovnání nákladů a výnosů na-13
A1: Srovnání nákladů a výnosů v roce | D1: =dat_rok -> 2010
A2: se stejným obdobím roku | C2: =dat_rok-1 -> 2009
A6: Položka | B6: =dat_obdobirokpredch -> 1-3/2009 | C6: % | D6: =dat_obdobi -> 1-3/2010 | E6: % | F6: Rozdíl
A7: Léky | B7: 197858 | C7: =B7/B$19*100 -> 19.3143936 | D7: 230524 | E7: =D7/D$19*100 -> 19.03229598 | F7: =D7-B7 -> 32666
A8: Krev | B8: 8698 | C8: 0.8490765877 | D8: 12655 | E8: 1.044809676 | F8: =D8-B8 -> 3957
A9: SZM | B9: 148439 | C9: 14.49023679 | D9: 227551 | E9: 18.78684208 | F9: 79112
A10: Potraviny | B10: 9732 | C10: 0.9500130319 | D10: 10398 | E10: 0.8584694593 | F10: 666
A11: Všeobecný materiál | B11: 8774 | C11: 0.856495514 | D11: 9076 | E11: 0.7493237942 | F11: 302
A12: Spotřeba energie | B12: 34972 | C12: 3.413877492 | D12: 37192 | E12: 3.07060936 | F12: 2220
A13: Opravy a udržování | B13: 6870 | C13: 0.6706318875 | D13: 10461 | E13: 0.8636708034 | F13: 3591
A14: Osobní náklady | B14: 340675 | C14: 33.25582508 | D14: 393532.8321 | E14: 32.49047101 | F14: 52857.83206
A15: Odpisy | B15: 65943 | C15: 6.437187563 | D15: 68028 | E15: 5.616460894 | F15: 2085
A16: Vnitropodnik. náklady | B16: 65601 | C16: 6.403802395 | D16: 72069.71202 | E16: 5.950148751 | F16: 6468.71202
A17: Ostatní náklady | B17: =B19 - SUM(B7:B16) - B18 -> 136845 | C17: 13.35846007 | D17: =D19 - SUM(D7:D16) - D18 -> 139737.8394 | E17: 11.53689819 | F17: 2892.83936
A18: Opravy nákladů min. let | B18: 0 | C18: 0 | D18: 0 | E18: 0 | F18: 0
A19: Náklady celkem | B19: 1024407 | C19: 100 | D19: 1211225.383 | E19: =SUM(E7:E17) -> 100 | F19: 186818.3834
A20: Tržby za vl. výrobky | B20: 0 | C20: =B20/B$35*100 -> 0 | D20: 0 | E20: =D20/D$19*100 -> 0 | F20: 0
A21: Zdr. služby za úhradu | B21: 14387.11536 | C21: 1.381687895 | D21: 15281.54245 | E21: 1.261659693 | F21: 894.42709
A22: Tržby z nájemného | B22: 8500.17091 | C22: 0.8163264808 | D22: 6224.80831 | E22: 0.5139265074 | F22: -2275.3626
A23: Zdrav. výk. - běžný rok | B23: 29114.76415 | C23: 2.796079421 | D23: 18035.11389 | E23: 1.488997352 | F23: -11079.65026
A24: Zdrav. výk. - min. let | B24: 480.83977 | C24: 0.04617815823 | D24: 97023.75064 | E24: 8.010379568 | F24: 96542.91087
A25: Fakturace ZP - běžný rok | B25: 761087.3632 | C25: 73.09215019 | D25: 790734.5058 | E25: 65.28384532 | F25: 29647.1426
A26: Ostatní služby | B26: 272.9987 | C26: 0.02621783378 | D26: 279.64169 | E26: =D26/D$35*100 -> 0.02303999143 | F26: 6.64299
A27: Tržby za prodané léky | B27: 90213 | C27: 8.663738835 | D27: 84601 | E27: 6.970370959 | F27: -5612
A28: Ost. tržby za prodané zboží | B28: 983 | C28: 0.09440385836 | D28: 1121 | E28: 0.09236044308 | F28: 138
A29: Aktivace - krev a KV | B29: 18092 | C29: 1.737491969 | D29: 21442 | E29: 1.766630348 | F29: 3350
A30: Tržby z prodeje materiálu a majetku | B30: 11105 | C30: 1.066485094 | D30: 14251.49861 | E30: 1.174196901 | F30: 3146.49861
A31: Provozní dotace od zřizovatele | B31: 918 | C31: 0.08816148726 | D31: 6700 | E31: 0.5520204894 | F31: 5782
A32: Vnitropodnik. výnosy | B32: 65601 | C32: 6.300089026 | D32: 72069.71202 | E32: 5.937904135 | F32: 6468.71202
A33: Použití rezerv. Fondu | B33: 439 | C33: 0.04216001406 | D33: 233 | E33: 0.01919713045 | F33: -206
A34: Ostatní výnosy | B34: =B35 - SUM(B20:B33) -> 40076.74791 | C34: 3.848829739 | D34: =D35 - SUM(D20:D33) -> 85725.49091 | E34: 7.063019022 | F34: 45648.743
A35: Výnosy celkem | B35: 1041271 | C35: 100 | D35: 1213723.064 | E35: 100 | F35: 172452.0643
A36: Hospodářský výsledek | B36: =B35-B19 -> 16864 | D36: =D35-D19 -> 2497.68088 | F36: -14366.31912
A37: Průměrný počet lůžek | B37: 1396 | D37: 1393 | F37: -3
A38: Počet oš. dnů | B38: 91069 | D38: 90147 | F38: -922
A39: Prům. nákl. na lůžkoden (hospit.) | B39: 929.0346736 | D39: 3421.791934 | F39: 2492.757261
A40: Prům. náklady na oš. den FNO | B40: 9630.526606 | D40: 11783.81839 | F40: 2153.29178
A43: Rozdíl:
A44: úspora nákladů (-)
A45: překročení nákladů (+)
A46: snížení výnosů (-)
A47: překročení výnosů (+)

Sheet Srovnání měs.přímých nákladů-14
A1: Srovnání měsíčních přímých nákladů
A2: =CONCATENATE("v letech ",(dat_rok - 3)," - ",(dat_rok)) -> v letech 2007 - 2010
G25: =dat_rok-3 -> 2007 | H25: =dat_rok-2 -> 2008 | I25: =dat_rok-1 -> 2009 | J25: =dat_rok -> 2010
F26: leden | G26: 281893 | H26: 314446 | I26: 323329 | J26: 368455
F27: únor | G27: 256650 | H27: 291124 | I27: 301656 | J27: 371761
F28: březen | G28: 290042 | H28: 307756 | I28: 333821 | J28: 398939
F29: duben | G29: 272114 | H29: 310025 | I29: 334925
F30: květen | G30: 281236 | H30: 299979 | I30: 323913
F31: červen | G31: 308643 | H31: 241350 | I31: 327130
F32: červenec | G32: 288462 | H32: 323227 | I32: 340500
F33: srpen | G33: 282016 | H33: 295521 | I33: 322292
F34: září | G34: 268948 | H34: 314214 | I34: 368941
F35: říjen | G35: 304485 | H35: 325578 | I35: 382151
F36: listopad | G36: 317797 | H36: 330337 | I36: 396024
F37: prosinec | G37: 374472 | H37: 198450 | I37: 475105

Sheet Náklady na lůžkoden-15
A1: Náklady na lůžkoden
A2: =CONCATENATE("ve FN Olomouc v roce ",dat_rok) -> ve FN Olomouc v roce 2010
A8: Počet ošetř. dnů | B8: 32491 | D8: =mesic_rok -> 2010-03-31
A9: Druh nákladu | B9: v tis. Kč | C9: Kč/den | D9: %
A10: Léky a léčiva | B10: 17298.91499 | C10: =B10*1000/B8 -> 532.4217473 | D10: =C10/C17*100 -> 16.64758924
A11: Krev a KV | B11: 4108.965 | C11: =B11*1000/B8 -> 126.4647133 | D11: =C11/C17*100 -> 3.954257337
A12: ZPr | B12: 4714.30976 | C12: =B12*1000/B8 -> 145.0958653 | D12: =C12/C17*100 -> 4.53681011
A13: Potraviny | B13: 1969.40266 | C13: =B13*1000/B8 -> 60.61379028 | D13: =C13/C17*100 -> 1.895252191
A14: Prádlo | B14: 365.67756 | C14: =B14*1000/B8 -> 11.25473393 | D14: =C14/C17*100 -> 0.3519093432
A15: Osobní náklady | B15: 52949.46574 | C15: =B15*1000/B8 -> 1629.665622 | D15: =C15/C17*100 -> 50.95585223
A16: Ost.nákl. v lůžkové č. | B16: =B17-SUM(B10:B15) -> 22505.69715 | C16: =B16*1000/B8 -> 692.6748069 | D16: =C16/C17*100 -> 21.65832955
A17: Náklady celkem | B17: 103912.4329 | C17: =SUM(C10:C16) -> 3198.191279 | D17: =SUM(D10:D16) -> 100
A22: Počet ošetř. dnů | B22: 90147 | D22: =dat_obdobi -> 1-3/2010
A23: Druh nákladu | B23: v tis. Kč | C23: Kč/den | D23: %
A24: Léky a léčiva | B24: 48267.16807 | C24: =B24*1000/B22 -> 535.4273361 | D24: =C24/C31*100 -> 15.6475714
A25: Krev a KV | B25: 11345.782 | C25: =B25*1000/B22 -> 125.8586753 | D25: =C25/C31*100 -> 3.67815103
A26: SZM | B26: 13568.61375 | C26: =B26*1000/B22 -> 150.5165313 | D26: =C26/C31*100 -> 4.398763403
A27: Potraviny | B27: 5493.24075 | C27: =B27*1000/B22 -> 60.93647875 | D27: =C27/C31*100 -> 1.780835303
A28: Prádlo | B28: 994.86729 | C28: =B28*1000/B22 -> 11.03605544 | D28: =C28/C31*100 -> 0.3225226915
A29: Osobní náklady | B29: 160089.4381 | C29: =B29*1000/B22 -> 1775.870945 | D29: =C29/C31*100 -> 51.89885823
A30: Ost.nákl. v lůžkové č. | B30: =B31-SUM(B24:B29) -> 68705.16756 | C30: =B30*1000/B22 -> 762.1459123 | D30: =C30/C31*100 -> 22.27329794
A31: Náklady celkem | B31: 308464.2775 | C31: =SUM(C24:C30) -> 3421.791934 | D31: =SUM(D24:D30) -> 100

Sheet LF 1-3
A1: Fakultní nemocnice Olomouc | H1: L E D E N - B Ř E Z E N 2 0 1 0
A2: LŮŽKOVÝ FOND A JEHO VYUŽITÍ VČETNĚ SVLS
A3: Počet dnů: 90
A4: Klinika |Prům| Počet ošetřovanců |Prům|Skut. |Uzav.|Počet |Využ.lůžek |Prům.|Počet|Prost|Obrat
A5: |poč.|-----------------------------|den.|lůžko.|lůžka|ošetř. |-----------|ošetř|hosp.|L/lho|Lůžka
A6: |lůž.|PŘIJ |exTR+|PROP |exTR-|Úmrtí|p.ho|kapac.| |dnů | dny | % |doba | |(dny)|
A7: ==========================================================================================================
A8: 1.IK | 63| 911| 31| 805| 94| 8| 53| 5342| 328| 4758 | 75,5| 89,1| 5,1| 925| 0,6| 15,6|
A9: 2.IK | 62| 606| 30| 521| 81| 17| 50| 5580| 0| 4506 | 72,7| 80,8| 7,2| 628| 1,7| 10,1|
A10: 3.IK | 70| 619| 55| 525| 97| 21| 51| 5628| 672| 4593 | 65,6| 81,6| 7,0| 659| 1,6| 10,5|
A11: GER | 90| 36| 211| 189| 8| 14| 51| 4842| 3258| 4625 | 51,4| 95,5| 20,2| 229| 0,9| 4,3|
A12: PLIC | 61| 584| 50| 518| 46| 22| 49| 5394| 96| 4404 | 72,2| 81,6| 7,2| 610| 1,6| 10,2|
A13: NEUR | 72| 594| 17| 521| 64| 5| 59| 6390| 90| 5291 | 73,5| 82,8| 8,8| 601| 1,8| 8,5|
A14: PSY | 90| 219| 10| 200| 6| 0| 48| 5154| 2946| 4327 | 48,1| 84,0| 19,9| 218| 3,8| 3,8|
A15: DK | 100| 1562| 3| 1514| 1| 1| 77| 9000| 0| 6965 | 69,7| 77,4| 4,5| 1541| 1,3| 15,4|
A16: PORGYN | 87| 1094| 8| 1071| 9| 1| 59| 6997| 833| 5327 | 61,2| 76,1| 4,9| 1092| 1,5| 14,0|
A17: NOVO | 50| 609| 0| 611| 3| 1| 47| 4500| 0| 4260 | 85,2| 94,7| 7,0| 612| 0,4| 12,2|
A18: 1CHIR | 86| 666| 188| 605| 173| 10| 65| 7362| 378| 5825 | 67,7| 79,1| 7,1| 821| 1,9| 10,0|
A19: 2CHIR | 33| 392| 21| 357| 26| 2| 29| 2970| 0| 2566 | 77,8| 86,4| 6,4| 399| 1,0| 12,1|
A20: NCHIR | 44| 392| 30| 362| 21| 11| 29| 3683| 277| 2590 | 58,9| 70,3| 6,3| 408| 2,7| 10,0|
A21: PCHIR | 18| 225| 11| 211| 10| 0| 11| 1566| 54| 1014 | 56,3| 64,8| 4,4| 229| 2,4| 13,1|
A22: KCHIR | 41| 162| 59| 174| 16| 3| 27| 3500| 190| 2398 | 58,5| 68,5| 11,6| 207| 5,3| 5,3|
A23: TRAUM | 33| 514| 15| 446| 64| 1| 22| 2970| 0| 2005 | 60,8| 67,5| 3,9| 520| 1,9| 15,8|
A24: KAR | 10| 54| 69| 20| 67| 37| 7| 860| 40| 655 | 65,5| 76,2| 5,3| 124| 1,7| 12,9|
A25: ORT | 72| 695| 19| 622| 49| 0| 41| 4413| 2067| 3686 | 51,2| 83,5| 5,3| 693| 1,0| 14,1|
A26: URO | 32| 371| 145| 347| 153| 2| 24| 2817| 63| 2178 | 68,1| 77,3| 4,3| 509| 1,3| 16,3|
A27: ORL | 40| 416| 31| 390| 34| 1| 24| 3242| 358| 2198 | 55,0| 67,8| 5,0| 436| 2,4| 12,1|
A28: OCNI | 26| 218| 4| 201| 3| 0| 13| 2340| 0| 1165 | 44,8| 49,8| 5,5| 213| 5,5| 8,2|
A29: KOZNI | 26| 217| 3| 197| 8| 0| 23| 2277| 63| 2051 | 78,9| 90,1| 9,7| 213| 1,1| 8,4|
A30: ONK | 64| 572| 10| 514| 9| 21| 44| 5649| 111| 3980 | 62,2| 70,5| 7,1| 563| 3,0| 9,0|
A31: HOK | 34| 233| 6| 197| 8| 7| 30| 3060| 0| 2664 | 78,4| 87,1| 11,8| 226| 1,8| 6,6|
A32: REH | 28| 86| 37| 92| 3| 0| 24| 2436| 84| 2126 | 75,9| 87,3| 19,5| 109| 2,8| 4,0|
A33: KNM | 10| 96| 0| 81| 6| 0| 7| 860| 40| 623 | 62,3| 72,4| 6,8| 92| 2,6| 9,6|
A34: PRAC | 18| 152| 1| 137| 2| 0| 14| 1566| 54| 1296 | 72,0| 82,8| 8,9| 146| 1,8| 8,4|
A35: IPCHO | 13| 15| 337| 3| 339| 6| 10| 1155| 15| 925 | 71,2| 80,1| 2,6| 350| 0,7| 27,3|
A36: UCOCH | 20| 223| 13| 212| 14| 0| 13| 1800| 0| 1146 | 57,3| 63,7| 5,0| 231| 2,8| 11,6|
A37: ==========================================================================================================
A38: Celkem |1393|12533| 1414|11643| 1414| 191|1002|113353|12017| 90147 | 64,7| 79,5| 7,4|12184| 1,9| 9,7 |

Sheet DA18-lůžkový fond-17
A1: Fakultní nemocnice Olomouc | J1: B Ř E Z E N 2 0 1 0
A2: LŮŽKOVÝ FOND A JEHO VYUŽITÍ VČETNĚ SVLS
O3: Počet dnů: | P3: 31
A4: Klinika |Poč.| Počet ošetřovanců |Prům|Skut. |Uzav.|Počet | Využ.lůžek|Prům.|Počet
A5: |lůž.|-----------------------------|den.|lůžko.|lůžka|ošetř. |-----------|ošetř|hosp.
A6: | |PŘIJ |exTR+|PROP |exTR-|Úmrtí|p.ho|kapac.| |dnů | dny | % |doba |
A7: ==============================================================================================
A8: 1.IK | 63| 351| 7| 315| 31| 4| 51| 1709| 244| 1579 | 25,1| 92,4| 4,5| 354
A9: 2.IK | 62| 227| 12| 187| 38| 5| 53| 1922| 0| 1658 | 26,7| 86,3| 7,1| 235
A10: 3.IK | 70| 236| 19| 195| 34| 8| 53| 1984| 186| 1650 | 23,6| 83,2| 6,7| 246
A11: GER | 90| 16| 72| 76| 2| 4| 54| 1705| 1085| 1662 | 18,5| 97,5| 19,6| 85
A12: PLIC | 61| 213| 16| 187| 15| 9| 49| 1891| 0| 1530 | 25,1| 80,9| 7,0| 220
A13: NEUR | 72| 216| 6| 199| 15| 2| 59| 2232| 0| 1817 | 25,2| 81,4| 8,3| 219
A14: PSY | 90| 71| 3| 74| 5| 0| 48| 1798| 992| 1503 | 16,7| 83,6| 19,6| 77
A15: DK | 100| 599| 2| 582| 1| 0| 84| 3100| 0| 2619 | 26,2| 84,5| 4,4| 592
A16: PORGYN | 87| 426| 2| 423| 4| 0| 65| 2480| 217| 2028 | 23,3| 81,8| 4,7| 428
A17: NOVO | 50| 222| 0| 220| 2| 1| 48| 1550| 0| 1495 | 29,9| 96,5| 6,7| 223
A18: 1CHIR | 86| 254| 69| 239| 62| 3| 73| 2666| 0| 2257 | 26,2| 84,7| 7,2| 314
A19: 2CHIR | 33| 128| 9| 124| 10| 1| 30| 1023| 0| 916 | 27,8| 89,5| 6,7| 136
A20: NCHIR | 44| 155| 5| 130| 7| 6| 29| 1364| 0| 912 | 20,7| 66,9| 6,0| 152
A21: PCHIR | 18| 88| 3| 82| 4| 0| 12| 558| 0| 383 | 21,3| 68,6| 4,3| 89
A22: KCHIR | 41| 58| 25| 70| 4| 1| 30| 1271| 0| 921 | 22,5| 72,5| 11,7| 79
A23: TRAUM | 33| 159| 5| 140| 19| 0| 21| 1023| 0| 643 | 19,5| 62,9| 4,0| 162
A24: KAR | 10| 14| 33| 7| 27| 6| 7| 310| 0| 224 | 22,4| 72,3| 5,1| 44
A25: ORT | 72| 257| 6| 237| 16| 0| 45| 1550| 682| 1391 | 19,3| 89,7| 5,4| 258
A26: URO | 32| 122| 47| 126| 53| 1| 24| 992| 0| 757 | 23,7| 76,3| 4,3| 175
A27: ORL | 40| 147| 13| 147| 15| 0| 25| 1147| 93| 763 | 19,1| 66,5| 4,7| 161
A28: OCNI | 26| 82| 1| 76| 0| 0| 14| 806| 0| 437 | 16,8| 54,2| 5,5| 80
A29: KOZNI | 26| 83| 2| 80| 5| 0| 26| 806| 0| 800 | 30,8| 99,3| 9,4| 85
A30: ONK | 64| 208| 3| 194| 2| 8| 41| 1984| 0| 1276 | 19,9| 64,3| 6,1| 208
A31: HOK | 34| 92| 1| 82| 2| 2| 31| 1054| 0| 969 | 28,5| 91,9| 10,8| 90
A32: REH | 28| 29| 13| 36| 1| 0| 26| 868| 0| 795 | 28,4| 91,6| 20,1| 40
A33: KNM | 10| 39| 0| 35| 3| 0| 7| 310| 0| 228 | 22,8| 73,5| 5,9| 39
A34: PRAC | 18| 55| 1| 50| 1| 0| 16| 558| 0| 496 | 27,6| 88,9| 9,3| 54
A35: IPCHO | 13| 4| 123| 2| 122| 1| 11| 403| 0| 326 | 25,1| 80,9| 2,6| 126
A36: UCOCH | 20| 82| 7| 80| 5| 0| 15| 620| 0| 456 | 22,8| 73,5| 5,2| 87
A37: ==============================================================================================
A38: Celkem |1393| 4633| 505| 4395| 505| 62|1048| 39684| 3499| 32491 | 23,3| 81,9| 7,1| 4545

Sheet Rozbor investic-FRIM-18
A1: Rozbor investic - FRM k | C1: =dat_do -> 2010-03-31
A4: Plán odpisů roku | B4: =dat_rok -> 2010 | C4: 272360000
A5: Alikvotní část odpisů | C5: =FRIM_planodpisu/12*MONTH(dat_do)-MONTH(g)+1 -> 68090000
A6: Skutečně zúčtované odpisy | C6: 67800615
A7: Limit vlastních zdrojů pro nákup inv.2009 | C7: 311314761
A10: F R M - čerpání | D10: v Kč
A14: DRUH INVESTICE | B14: ČERPÁNÍ CELKEM | C14: TVORBA-VLAST.+CIZÍ ZDR. | D14: NEDOČERPÁNO
A15: vlastní zdroje | C15: =C7 -> 311314761 | D15: =C15-(B16+B17+B18+B19+B20) -> 280987435.2
A16: stavby | B16: 12803447
A17: projekty | B17: 42000
A18: Přístrojová technika | B18: 2999056
A19: technické zhodnocení | B19: 4093616.3
A20: oprava a udržování | B20: 10389206.45
A21: DARY | C21: 0 | D21: =C21-(B22+B23+B24) -> 0
A22: stavby | B22: 0
A23: projekty | B23: 0
A24: Přístrojová technika | B24: 0
A25: OSTATNÍ DOTACE | C25: 0 | D25: =C25-(B26+B27+B28) -> 0
A26: stavby | B26: 0
A27: projekty | B27: 0
A28: Přístrojová technika | B28: 0
A29: SYSTÉM.DOTACE 916 | C29: 0 | D29: =C29-(B30+B31+B32+B33) -> 0
A30: stavby | B30: 0
A31: projekty | B31: 0
A32: Přístrojová technika | B32: 0
A33: Přístrojová technika - granty | B33: 0
A34: SYSTÉM.DOTACE 916 IOP | C34: 0 | D34: =C34-(B35+B36+B37) -> 0
A35: stavby | B35: 0
A36: projekty | B36: 0
A37: Přístrojová technika | B37: 0
A38: C E L K E M | B38: =SUM(B15:B37) -> 30327325.75 | C38: =SUM(C15:C37) -> 311314761 | D38: =SUM(D15:D37) -> 280987435.2
A40: Z toho:
A41: čerpání z odpisů | B41: =SUM(B16:B20) -> 30327325.75 | C41: =SUM(C15) -> 311314761 | D41: =SUM(D15) -> 280987435.2
A42: čerpání z dotací | B42: =SUM(B22:B37) -> 0 | C42: =SUM(C21:C37) -> 0 | D42: =SUM(D21:D37) -> 0

Sheet Celková finanční situace-19
A1: Celková finanční situace:
A3: Rozbor platební neschopnosti FN k | C3: 2010-03-31
A6: Zůstatek na BÚ (bez FKSP) | C6: 242906 | D6: tis. Kč
A9: Potřeba finančních prostředků na mzdy za měsíc | D9: 2010-03-01
A10: celkem | C10: 130209 | D10: tis. Kč
A13: 1. Stav závazků vůči dodavatelům k | C13: 2010-03-31
A15: Závazky | B15: LS | C15: FN | D15: Celkem
A16: do splatnosti | B16: 347797464.9 | C16: 200356631.8 | D16: =SUM(B16:C16) -> 548154096.7
A17: po splat. do 30 dnů | B17: 10156847.65 | C17: 32525324.47 | D17: 42682172.12
A18: 31 - 90 dnů | B18: 0 | C18: 26543895.12 | D18: 26543895.12
A19: 91 - 180 dnů | B19: 0 | C19: 5045.19 | D19: 5045.19
A20: 181 - 360 dnů | B20: 0 | C20: 130719.6 | D20: 130719.6
A21: nad 360 dnů | B21: 0 | C21: 313123.56 | D21: 313123.56
A22: C e l k e m | B22: =SUM(B16:B21) -> 357954312.5 | C22: =SUM(C16:C21) -> 259874739.8 | D22: =SUM(D16:D21) -> 617829052.3
A27: Pohledávky
A29: FN - pouze ve vztahu k odběratel. (úč. 311+324+970) | D29: 409116 | E29: tis. Kč
A30: LS - pouze ve vztahu k odběratelům | D30: 35586 | E30: tis. Kč
A31: Celkem | D31: =SUM(D29:D30) -> 444702 | E31: tis. Kč
B33: z toho po lhůtě splatnosti celkem | D33: 18723 | E33: tis. Kč
A36: Závazky
A38: FN - pouze ve vztahu k dodavatel. (úč.321+314+970) | D38: 259875 | E38: tis. Kč
A39: LS - pouze ve vztahu k dodavatelům | D39: 357954 | E39: tis. Kč
A40: Celkem | D40: =SUM(D38:D39) -> 617829 | E40: tis. Kč
B42: z toho po lhůtě splatnosti celkem | D42: 69675 | E42: tis. Kč

Sheet Nezaplacené pohledávky FN Ol-20
B1: Nezaplacené pohledávky FN Olomouc
B2: k 31.3..2010
A5: Kód | B5: Název zdravotní pojišťovny (ZP) | C5: do splatnosti | D5: po splatnosti | E5: Celkem
A6: 111 | B6: Všeobecná zdrav.pojišťovna ČR | C6: =294983153.71+17880552.33 -> 312863706 | D6: -32037.44 | E6: =C6+D6 -> 312831668.6
A7: 201 | B7: Vojenská zdrav.pojišťovna ČR | C7: =27491484.6+2222921.9 -> 29714406.5 | D7: =25-10500 -> -10475 | E7: 29703931.5
A8: 205 | B8: Česká průmyslová ZP | C8: =19693015.78+3394844.83 -> 23087860.61 | D8: =1481.48+26380.22+5.02 -> 27866.72 | E8: 23115727.33
A9: 207 | B9: Oborová zdr.poj.zam.bank a p. | C9: =8758134.83+1465987.13 -> 10224121.96 | D9: 18898 | E9: 10243019.96
A10: 209 | B10: Zaměstnanecká poj.ŠKODA | C10: =56718.51+7498.89 -> 64217.4 | D10: 0 | E10: 64217.4
A11: 211 | B11: Zdr.poj.ministerstva vnitra CR | C11: =648773.6+2619232.47 -> 3268006.07 | D11: 0 | E11: 3268006.07
A12: 213 | B12: Revirní bratrská pokladna | C12: =102865.54+1863071.07 -> 1965936.61 | D12: 0 | E12: 1965936.61
A13: 217 | B13: Zdrav.poj. METAL-ALIANCE | C13: =32520787.35+4831659.21 -> 37352446.56 | D13: 52000 | E13: 37404446.56
A14: 222 | B14: Česká národní zdravotní pojiš. | C14: 0 | D14: 0 | E14: =C14+D14 -> 0
A15: 227 | B15: Pojišťovna AGEL | C15: 0 | D15: 0 | E15: 0
A16: 228 | B16: ZP Media | C16: =1399187.14+318970.49 -> 1718157.63 | D16: =301578.32+65418.94 -> 366997.26 | E16: 2085154.89
E17: 0
E18: 0
B19: Pohledávky celkem (aktivní ZP) | C19: =SUM(C6:C18) -> 420258859.4 | D19: =SUM(D6:D18) -> 423249.54 | E19: =SUM(E6:E18) -> 420682108.9
A20: 202 | B20: Hornická zaměstnanecká poj. | C20: 0 | D20: 0 | E20: 0
A21: 204 | B21: Zdrav.poj. GARANT-HOSPITAL | C21: 0 | D21: 0 | E21: 0
A22: 206 | B22: Moravská zdravotní pojišťovna | C22: 0 | D22: 0 | E22: 0
A23: 208 | B23: Zdravotní pojišťovna ATLAS | C23: 0 | D23: 0 | E23: 0
A24: 210 | B24: Zdrav.poj. škodováků | C24: 0 | D24: 0 | E24: 0
A25: 214 | B25: Regionální zdrav.poj.REZAPO | C25: 0 | D25: 0 | E25: 0
A26: 215 | B26: Moravskoslezská poj. IMPULS | C26: 0 | D26: 0 | E26: 0
A27: 216 | B27: Zdravotní pojišťovna SALVUS | C27: 0 | D27: 0 | E27: 0
A28: 218 | B28: Zdrav.poj. CRYSTAL | C28: 0 | D28: 0 | E28: 0
A29: 219 | B29: Prostějovská zdravotní poj. | C29: 0 | D29: 0 | E29: 0
A30: 221 | B30: Mendlova zdravotní poj. | C30: 0 | D30: 0 | E30: 0
A31: 223 | B31: Zem.-potrav. zdrav.poj. ZEPO | C31: 0 | D31: 0 | E31: 0
A32: 224 | B32: Zaměstnanecká zdrav.poj. RADIX | C32: 0 | D32: 0 | E32: 0
A33: 225 | B33: Zdravotní pojišťovna SPORT | C33: 0 | D33: 0 | E33: 0
E34: 0
E35: 0
B36: Pohledávky celkem (zaniklé ZP) | C36: =SUM(C20:C35) -> 0 | D36: =SUM(D20:D35) -> 0 | E36: =SUM(E20:E35) -> 0
B37: Slovenské ZP | C37: 0 | D37: 0 | E37: 0
B38: Pohledávky celkem | C38: =C19+C36+C37 -> 420258859.4 | D38: =D19+D36+D37 -> 423249.54 | E38: =E19+E36+E37 -> 420682108.9

Sheet Pohledávky po zdr. pojišťov.-21
C1: Pohledávky po zdrav. pojišťovnách
D2: k | E2: =dat_do -> 2010-03-31
D46: ZP celkem | E46: VZP | F46: Ostat. ZP
C47: pohl.celkem | D47: =SUM(E47:F47) -> 420682.1089 | E47: 312831.6686 | F47: 107850.4403
C48: pohl.po spl. | D48: =SUM(E48:F48) -> 423.24954 | E48: -32.03744 | F48: 455.28698

Sheet Nezaplacené pohledávky-22 (hidden)
C1: Nezaplacené pohledávky k | H1: =dat_do -> 2010-03-31
A36: Zdrav.poj. | B36: VZP | C36: 201 | D36: 205 | E36: 207 | F36: 210 | G36: 211 | H36: 213 | I36: 215 | J36: 217 | K36: 219 | L36: 222 | M36: 225
A37: pohl.celk. | B37: 312831.6686 | C37: 29703.9315 | D37: 23099.0359 | E37: 10243.01996 | F37: 0 | G37: 3268.00607 | H37: 1965.93661 | I37: 0 | J37: 37404.44656 | K37: 0 | L37: 0.00502 | M37: 0
A38: pohl.po spl. | B38: -32.03744 | C38: -10.475 | D38: 26.38022 | E38: 18.898 | F38: 0 | G38: 0 | H38: 0 | I38: 0 | J38: 52 | K38: 0 | L38: 0.00502 | M38: 0

Sheet Hospodaření,fin.sit.,solvent-23
C1: Hospodaření, finanční situace a solventnost
D2: FN Olomouc v roce | F2: =dat_rok -> 2010
D35: HV | E35: Pohledávky | F35: Závazky | G35: Solventnost
C36: 1 | D36: -21.35703585 | E36: 487.5252886 | F36: 584.1 | G36: =SUM(E36-F36) -> -96.57471144
C37: 1-2 | D37: -35.30757039 | E37: 499.6506803 | F37: 582.8 | G37: =SUM(E37-F37) -> -83.14931974
C38: 1-3 | D38: 2.49768088 | E38: 444.6882145 | F38: 617.8 | G38: =SUM(E38-F38) -> -173.1117855
C39: 1-4
C40: 1-5
C41: 1-6
C42: 1-7
C43: 1-8
C44: 1-9
C45: 1-10
C46: 1-11
C47: 1-12

Sheet Nezap. pohled. FNOl - souhrn-24 (hidden)
A1: Nezaplacené pohledávky FN Olomouc
A2: =CONCATENATE("k ",DAY(dat_do),".",MONTH(dat_do),".",YEAR(dat_do)) -> k 31.3.2010
A5: Kód | B5: Název zdravotní pojišťovny (ZP) | C5: do splatnosti | D5: po splatnosti | E5: Celkem
A6: ='Nezaplacené pohledávky FN Ol-20'!A6 -> 111 | B6: ='Nezaplacené pohledávky FN Ol-20'!B6 -> Všeobecná zdrav.pojišťovna ČR | C6: ='Nezaplacené pohledávky FN Ol-20'!C6 -> 312863706 | D6: ='Nezaplacené pohledávky FN Ol-20'!D6 -> -32037.44 | E6: =C6+D6 -> 312831668.6
A7: ='Nezaplacené pohledávky FN Ol-20'!A7 -> 201 | B7: ='Nezaplacené pohledávky FN Ol-20'!B7 -> Vojenská zdrav.pojišťovna ČR | C7: ='Nezaplacené pohledávky FN Ol-20'!C7 -> 29714406.5 | D7: ='Nezaplacené pohledávky FN Ol-20'!D7 -> -10475 | E7: 29703931.5
A8: ='Nezaplacené pohledávky FN Ol-20'!A8 -> 205 | B8: ='Nezaplacené pohledávky FN Ol-20'!B8 -> Česká průmyslová ZP | C8: ='Nezaplacené pohledávky FN Ol-20'!C8 -> 23087860.61 | D8: ='Nezaplacené pohledávky FN Ol-20'!D8 -> 27866.72 | E8: 23115727.33
A9: ='Nezaplacené pohledávky FN Ol-20'!A9 -> 207 | B9: ='Nezaplacené pohledávky FN Ol-20'!B9 -> Oborová zdr.poj.zam.bank a p. | C9: ='Nezaplacené pohledávky FN Ol-20'!C9 -> 10224121.96 | D9: ='Nezaplacené pohledávky FN Ol-20'!D9 -> 18898 | E9: 10243019.96
A10: ='Nezaplacené pohledávky FN Ol-20'!A10 -> 209 | B10: ='Nezaplacené pohledávky FN Ol-20'!B10 -> Zaměstnanecká poj.ŠKODA | C10: ='Nezaplacené pohledávky FN Ol-20'!C10 -> 64217.4 | D10: ='Nezaplacené pohledávky FN Ol-20'!D10 -> 0 | E10: 64217.4
A11: ='Nezaplacené pohledávky FN Ol-20'!A11 -> 211 | B11: ='Nezaplacené pohledávky FN Ol-20'!B11 -> Zdr.poj.ministerstva vnitra CR | C11: ='Nezaplacené pohledávky FN Ol-20'!C11 -> 3268006.07 | D11: ='Nezaplacené pohledávky FN Ol-20'!D11 -> 0 | E11: 3268006.07
A12: ='Nezaplacené pohledávky FN Ol-20'!A12 -> 213 | B12: ='Nezaplacené pohledávky FN Ol-20'!B12 -> Revirní bratrská pokladna | C12: ='Nezaplacené pohledávky FN Ol-20'!C12 -> 1965936.61 | D12: ='Nezaplacené pohledávky FN Ol-20'!D12 -> 0 | E12: 1965936.61
A13: ='Nezaplacené pohledávky FN Ol-20'!A13 -> 217 | B13: ='Nezaplacené pohledávky FN Ol-20'!B13 -> Zdrav.poj. METAL-ALIANCE | C13: ='Nezaplacené pohledávky FN Ol-20'!C13 -> 37352446.56 | D13: ='Nezaplacené pohledávky FN Ol-20'!D13 -> 52000 | E13: 37404446.56
A14: ='Nezaplacené pohledávky FN Ol-20'!A15 -> 227 | B14: ='Nezaplacené pohledávky FN Ol-20'!B15 -> Pojišťovna AGEL | C14: ='Nezaplacené pohledávky FN Ol-20'!C15 -> 0 | D14: ='Nezaplacené pohledávky FN Ol-20'!D15 -> 0 | E14: 0
A15: ='Nezaplacené pohledávky FN Ol-20'!A16 -> 228 | B15: ='Nezaplacené pohledávky FN Ol-20'!B16 -> ZP Media | C15: ='Nezaplacené pohledávky FN Ol-20'!C16 -> 1718157.63 | D15: ='Nezaplacené pohledávky FN Ol-20'!D16 -> 366997.26 | E15: 2085154.89
A16: ='Nezaplacené pohledávky FN Ol-20'!A17 -> 0 | B16: ='Nezaplacené pohledávky FN Ol-20'!B17 -> 0 | C16: ='Nezaplacené pohledávky FN Ol-20'!C17 -> 0 | D16: ='Nezaplacené pohledávky FN Ol-20'!D17 -> 0 | E16: 0
A17: ='Nezaplacené pohledávky FN Ol-20'!A18 -> 0 | B17: ='Nezaplacené pohledávky FN Ol-20'!B18 -> 0 | C17: ='Nezaplacené pohledávky FN Ol-20'!C18 -> 0 | D17: ='Nezaplacené pohledávky FN Ol-20'!D18 -> 0 | E17: 0
B18: Pohledávky celkem (aktivní ZP) | C18: =SUM(C6:C17) -> 420258859.4 | D18: =SUM(D6:D17) -> 423249.54 | E18: =SUM(E6:E17) -> 420682108.9
B19: Pohledávky celkem (zaniklé ZP) | C19: ='Nezaplacené pohledávky FN Ol-20'!C36 -> 0 | D19: ='Nezaplacené pohledávky FN Ol-20'!D36 -> 0 | E19: ='Nezaplacené pohledávky FN Ol-20'!E36 -> 0
B20: Slovenské ZP | C20: =Slovenske_ZP_dospl -> 0 | D20: =Slovenske_ZP_pospl -> 0 | E20: =C20+D20 -> 0
B21: Pohledávky celkem | C21: =C18+C19+C20 -> 420258859.4 | D21: =D18+D19+D20 -> 423249.54 | E21: =E18+E19+E20 -> 420682108.9

Sheet Vývojová řada nákladů-25
E1: Vývojová řada nákladů
F2: =CONCATENATE("v letech ",YEAR(dat_do)-2," - ",YEAR(dat_do)) -> v letech 2008 - 2010
B38: =CONCATENATE("Ø ",YEAR(dat_do)-2) -> Ø 2008 | C38: =CONCATENATE("Ø ",YEAR(dat_do)-1) -> Ø 2009 | D38: =CONCATENATE("I.",RIGHT(YEAR(dat_do),2)) -> I.10 | E38: =CONCATENATE("II.",RIGHT(YEAR(dat_do),2)) -> II.10 | F38: =CONCATENATE("III.",RIGHT(YEAR(dat_do),2)) -> III.10 | G38: =CONCATENATE("IV.",RIGHT(YEAR(dat_do),2)) -> IV.10 | H38: =CONCATENATE("V.",RIGHT(YEAR(dat_do),2)) -> V.10 | I38: =CONCATENATE("VI.",RIGHT(YEAR(dat_do),2)) -> VI.10 | J38: =CONCATENATE("VII.",RIGHT(YEAR(dat_do),2)) -> VII.10 | K38: =CONCATENATE("VIII.",RIGHT(YEAR(dat_do),2)) -> VIII.10 | L38: =CONCATENATE("IX.",RIGHT(YEAR(dat_do),2)) -> IX.10 | M38: =CONCATENATE("X.",RIGHT(YEAR(dat_do),2)) -> X.10 | N38: =CONCATENATE("XI.",RIGHT(YEAR(dat_do),2)) -> XI.10 | O38: =CONCATENATE("XII.",RIGHT(YEAR(dat_do),2)) -> XII.10
A39: Léky | B39: 58886.60938 | C39: 68993.11458 | D39: 78495.00614 | E39: 71186.8907 | F39: 80842.44362
A40: z toho: VLV | B40: 25811.33809 | C40: 5945.025664 | D40: 5053.27684 | E40: 5424.59416 | F40: 8187.97082
A41: centra | B41: 7881.186365 | C41: 37807.69 | D41: 47050.6356 | E41: 41008.53107 | F41: 44071.48723
A42: Krev | B42: 3422.303363 | C42: 4286.630586 | D42: 4347.04708 | E42: 3630.0563 | F42: 4678.14396
A43: SZM | B43: 48845.25605 | C43: 57669.05343 | D43: 63572.34346 | E43: 77825.44716 | F43: 86153.11178
A44: Prodej LS | B44: 25951.58575 | C44: 26661.97647 | D44: 22922.72037 | E44: 21967.74285 | F44: 31104.05667
A45: Os. náklady | B45: 115119.0559 | C45: 125951.292 | D45: 132480.9112 | E45: 130641.267 | F45: 130410.6538
A46: Odpisy | B46: 9957.451378 | C46: 22151.82858 | D46: 22316.279 | E46: 23035.569 | F46: 22676.62
A47: Př. náklady | B47: 296000.5857 | C47: 352482.2484 | D47: 368454.9864 | E47: 371761.2798 | F47: 398939.4052
A49: *VLV = vliv lékové vyhlášky

Sheet Vývojová řada výnosů -26
E1: Vývojová řada výnosů
F2: =CONCATENATE("v letech ",YEAR(dat_do)-2," - ",YEAR(dat_do)) -> v letech 2008 - 2010
B30: =CONCATENATE("Ø ",YEAR(dat_do)-2) -> Ø 2008 | C30: =CONCATENATE("Ø ",YEAR(dat_do)-1) -> Ø 2009 | D30: =CONCATENATE("I.",RIGHT(YEAR(dat_do),2)) -> I.10 | E30: =CONCATENATE("II.",RIGHT(YEAR(dat_do),2)) -> II.10 | F30: =CONCATENATE("III.",RIGHT(YEAR(dat_do),2)) -> III.10 | G30: =CONCATENATE("IV.",RIGHT(YEAR(dat_do),2)) -> IV.10 | H30: =CONCATENATE("V.",RIGHT(YEAR(dat_do),2)) -> V.10 | I30: =CONCATENATE("VI.",RIGHT(YEAR(dat_do),2)) -> VI.10 | J30: =CONCATENATE("VII.",RIGHT(YEAR(dat_do),2)) -> VII.10 | K30: =CONCATENATE("VIII.",RIGHT(YEAR(dat_do),2)) -> VIII.10 | L30: =CONCATENATE("IX.",RIGHT(YEAR(dat_do),2)) -> IX.10 | M30: =CONCATENATE("X.",RIGHT(YEAR(dat_do),2)) -> X.10 | N30: =CONCATENATE("XI.",RIGHT(YEAR(dat_do),2)) -> XI.10 | O30: =CONCATENATE("XII.",RIGHT(YEAR(dat_do),2)) -> XII.10
A31: Fakt. ZP běžný rok | B31: 242648.2124 | C31: 277470.6809 | D31: 267522.904 | E31: 269864.3267 | F31: 271382.389
A32: Dorov. ZP minul. let | B32: 2335.178226 | C32: 9548.614495 | D32: 22013.40311 | E32: 2900.03237 | F32: 72110.31516
A33: Prodej LS | B33: 28611.43977 | C33: 29544.61908 | D33: 25463.88986 | E33: 24551.93713 | F33: 34585.1073
A34: Přímé výnosy | B34: 305094.6372 | C34: 352687.9779 | D34: 347097.9506 | E34: 357810.7453 | F34: 436744.6565

Sheet Vývojová řada HV - 27
E1: Vývojová řada hospodářských výsledků
F2: =CONCATENATE("v letech ",YEAR(dat_do)-2,"-",YEAR(dat_do)) -> v letech 2008-2010
B36: 01 | C36: 02 | D36: 03 | E36: 04 | F36: 05 | G36: 06 | H36: 07 | I36: 08 | J36: 09 | K36: 10 | L36: 11 | M36: 12
A37: =CONCATENATE("HV ",YEAR(dat_do)-2) -> HV 2008 | B37: -31193.58369 | C37: -7114.38203 | D37: 441.17762 | E37: 8042.74969 | F37: 10746.53691 | G37: 67656.09773 | H37: 74.6272 | I37: 8.95152 | J37: 17608.64403 | K37: -11563.22397 | L37: -19354.0164 | M37: 73775.03949
A38: =CONCATENATE("HV ",YEAR(dat_do)-1) -> HV 2009 | B38: 6492.61833 | C38: 18308.92358 | D38: -7937.45901 | E38: -5773.73576 | F38: 46337.23787 | G38: 41870.974 | H38: 51840.8519 | I38: 41112.93109 | J38: -24927.6951 | K38: -15718.64914 | L38: 6463.40567 | M38: -155600.6505
A39: =CONCATENATE("HV ",YEAR(dat_do)) -> HV 2010 | B39: -21357.03585 | C39: -13950.53454 | D39: 37805.25127

Sheet Podíl ukazatelů N a V - 28
A1: Náklady a výnosy FN Olomouc v tis. Kč
A2: =dat_obdobi -> 1-3/2010
D6: Podíl ukazatelů z celkových nákladů
A7: Náklady FN Olomouc v tis. Kč
A8: Léky | B8: 230524
A9: Krev | B9: 12655
A10: SZM | B10: 227551
A11: Potraviny | B11: 10398
A12: Energie | B12: 37192
A13: Osobní náklady | B13: 393532.8321
A14: Odpisy | B14: 68028
A15: Prodané zboží LS | B15: 75995
A16: Ostatní | B16: =B17-SUM(B8:B15) -> 83279.83936
A17: Celkem | B17: 1139155.671
D31: Podíl ukazatelů z celkových výnosů
A32: Výnosy FN Olomouc v tis. Kč
A33: Provozní dotace | B33: 6700
A34: Výkony pro zdr.poj. | B34: 905793.3703
A35: Aktivace | B35: 21441.89316
A36: Tržby za léčiva | B36: 84600.93429
A37: Ostatní výnosy | B37: =B38-SUM(B33:B36) -> 123117.1545
A38: Celkem | B38: 1141653.352

Sheet List1
